[Event "Romanian Championship Open 2025"]
[Site "Craiova"]
[Date "2025.02.20"]
[Round "6.21"]
[White "Gales, Randi-Ioan"]
[Black "Armenciu, Bogdan-Ovidiu"]
[Result "1-0"]
[Annotator "ChessBase"]
[ECO "D38"]
[WhiteElo "2247"]
[BlackElo "1950"]
[PlyCount "81"]
[EventDate "2025.02.12"]
[EventType "swiss"]
[EventCountry "ROU"]
[SourceTitle "playchess.com"]
[Source "ChessBase"]
[SourceQuality "1"]
[TimeControl "40/5400+30:900+30"]

1. d4 {[%emt 0:00:05]} Nf6 {[%emt 0:00:11]} 2. Nf3 {[%emt 0:00:04]} d5 {[%emt 0:00:35]} 3. c4 {[%emt 0:00:47]} e6 {[%emt 0:00:28]} 4. Nc3 {[%emt 0:00:04]} Bb4 {[%emt 0:00:55]} 5. Qa4+ {[%emt 0:00:46]} Nc6 {[%emt 0:00:17]} 6. e3 {[%emt 0:00:41]} O-O {[%emt 0:02:42]} 7. Bd2 {[%emt 0:00:37]} Re8 {[%emt 0:06:50]} 8. Rc1 {[%emt 0:03:43]} Bf8 {[%emt 0:03:11]} 9. a3 {[%emt 0:13:06]} a6 {[%emt 0:17:14]} 10. Qc2 {[%emt 0:01:20]} h6 {[%emt 0:07:17]} 11. h3 {[%emt 0:09:43]} dxc4 {[%emt 0:01:16]} 12. Bxc4 {[%emt 0:00:28]} e5 {[%emt 0:10:05]} 13. d5 {[%emt 0:03:29]} Na5 {[%emt 0:10:31]} 14. Ba2 {[%emt 0:01:30]} c5 {[%emt 0:00:30]} 15. e4 {[%emt 0:01:43]} b5 {[%emt 0:05:10]} 16. Ne2 {[%emt 0:05:01]} Nb7 {[%emt 0:01:25]} 17. Ng3 {[%emt 0:06:21]} Bd7 {[%emt 0:03:14]} 18. b4 {[%emt 0:05:15]} c4 {[%emt 0:01:36]} 19. O-O {[%emt 0:01:08]} a5 {[%emt 0:02:01]} 20. Bc3 {[%emt 0:01:26]} axb4 {[%emt 0:04:16]} 21. axb4 {[%emt 0:00:11]} Qc7 {[%emt 0:01:48]} 22. Qb2 {[%emt 0:00:58]} Bd6 {[%emt 0:00:20]} 23. Bb1 {[%emt 0:01:21]} Nh7 {[%emt 0:02:01]} 24. Nh4 {[%emt 0:01:02]} g6 {[%emt 0:06:39]} 25. Bd2 {[%emt 0:03:55]} Ng5 {[%emt 0:01:46]} 26. Rc3 {[%emt 0:07:10]} Qd8 {[%emt 0:02:27]} 27. Nf3 {[%emt 0:00:11]} Qe7 {[%emt 0:01:00]} 28. Nxg5 {[%emt 0:04:26]} hxg5 {[%emt 0:00:06]} 29. Ra3 {[%emt 0:00:37]} f6 {[%emt 0:00:24]} 30. Bc2 {[%emt 0:00:48]} Kg7 {[%emt 0:03:47]} 31. Rfa1 {[%emt 0:00:34]} Qf8 {[%emt 0:00:15]} 32. Ra7 {[%emt 0:01:49]} Rxa7 {[%emt 0:01:27]} 33. Rxa7 {[%emt 0:00:06]} Rb8 {[%emt 0:00:01]} 34. Qa3 {[%emt 0:00:48]} Qc8 {[%emt 0:02:45]} 35. Bd1 {[%emt 0:02:37]} g4 {[%emt 0:01:34]} 36. Qa6 {[%emt 0:03:48]} Be7 {[%emt 0:01:36]} 37. Bxg4 {[%emt 0:00:27]} Bxg4 {[%emt 0:00:16]} 38. hxg4 {[%emt 0:00:01]} Qd7 {[%emt 0:00:26]} 39. Qc6 {[%emt 0:00:46]} Qxc6 {[%emt 0:01:04]} 40. dxc6 {[%emt 0:00:00]} Rd8 {[%emt 0:00:00]} 41. Rxb7 {[%emt 0:02:28]} 1-0

[Event "Romanian Championship Open 2025"]
[Site "Craiova"]
[Date "2025.02.21"]
[Round "7.1"]
[White "Nastore, Pavel-Alexandru"]
[Black "Gavrilescu, David"]
[Result "1/2-1/2"]
[Annotator "TA"]
[ECO "C07"]
[WhiteElo "2250"]
[BlackElo "2543"]
[PlyCount "28"]
[EventDate "2025.02.12"]
[EventType "swiss"]
[EventCountry "ROU"]
[SourceTitle "playchess.com"]
[Source "ChessBase"]
[SourceQuality "1"]
[TimeControl "40/5400+30:900+30"]

{[%evp 14,28,14,6,15,11,17,14,19,0,-16,-10,-8,-50,0,-51,-42]} 1. e4 {[%emt 0:01:35]} e6 {[%emt 0:00:37]} 2. d4 {[%emt 0:00:07]} d5 {[%emt 0:00:19]} 3. Nd2 {[%emt 0:00:17]} c5 {[%emt 0:00:37]} 4. Ngf3 {[%emt 0:01:05]} cxd4 {[%emt 0:00:35]} 5. Nxd4 {[%emt 0:00:05]} Nc6 {[%emt 0:00:36]} 6. Bb5 {[%emt 0:00:08]} Bd7 {[%emt 0:00:31]} 7. Nxc6 {[%emt 0:00:10]} bxc6 {[%emt 0:00:36]} 8. Bd3 {[%emt 0:00:11]} Bd6 {[%emt 0:01:04] C07: French Tarrasch: 3...c5, 4 Ngf3 and 4 exd5 Qxd5.} 9. Qe2 {[%emt 0:02:54]} e5 {[%emt 0:01:40]} 10. c4 {[%emt 0:08:04]} d4 {[%emt 0:00:50] The position is equal.} 11. O-O {[%emt 0:00:54][%cal Oc4c5]} c5 {[%emt 0:03:38]} 12. f4 {[%emt 0:00:53]} Ne7 {[%emt 0:21:55]} 13. f5 {[%emt 0:15:14][%cal Ob2b4]} Qc7 $146 {[%emt 0:15:26]} (13... Ng8 $15) (13... Nc6 14. a3 f6 15. Qh5+ Ke7 16. Qd1 a5 17. Rf3 g5 18. fxg6 hxg6 19. Rf2 Qg8 {½-½ Kunka,H (2310)-Melillo,L (2297) Austin Spring GM 2024 (3)}) 14. Nf3 {[%emt 0:09:04]} (14. Qh5 $11) 14... f6 {[%emt 0:04:47] Weighted Error Value: White=0.20 (precise) /Black=0.11 (very precise)   Mistake:       	White=1     	Black=1      Inaccurate:     	White=2     	---        OK:         	White=1     	Black=4} 1/2-1/2

[Event "Romanian Championship Open 2025"]
[Site "Craiova"]
[Date "2025.02.21"]
[Round "7.2"]
[White "Lupulescu, Constantin"]
[Black "Filip, Lucian-Ioan"]
[Result "1-0"]
[Annotator "TA"]
[ECO "B42"]
[WhiteElo "2603"]
[BlackElo "2328"]
[PlyCount "75"]
[EventDate "2025.02.12"]
[EventType "swiss"]
[EventCountry "ROU"]
[SourceTitle "playchess.com"]
[Source "ChessBase"]
[SourceQuality "1"]
[TimeControl "40/5400+30:900+30"]

{[%evp 14,75,54,49,50,45,51,31,22,25,16,24,18,17,40,13,24,30,72,63,60,66,72,68,73,66,188,193,147,157,193,168,224,143,294,295,300,301,296,248,237,243,280,195,161,149,148,138,161,146,220,229,223,235,402,369,395,0,297,0,405,398,387,377]} 1. e4 {[%emt 0:00:03]} c5 {[%emt 0:00:12]} 2. Nf3 {[%emt 0:00:05]} e6 {[%emt 0:00:02]} 3. d4 {[%emt 0:00:04]} cxd4 {[%emt 0:00:06]} 4. Nxd4 {[%emt 0:00:11]} a6 {[%emt 0:00:05]} 5. Bd3 {[%emt 0:00:06]} Bc5 {[%emt 0:00:03]} 6. Nb3 {[%emt 0:00:06]} Be7 {[%emt 0:00:02]} 7. Qg4 {[%emt 0:00:28]} g6 {[%emt 0:00:03]} 8. Qe2 {[%emt 0:01:09]} d6 {[%emt 0:00:04] B42: Sicilian: Kan Variation: 5 Bd3.} 9. a4 {[%emt 0:00:31]} Nd7 {[%emt 0:00:30]} 10. Na3 $5 {[%emt 0:03:27][%mdl 4] Leaves trodden paths.} Ne5 {[%emt 0:00:04] White is slightly better.} 11. Nc4 {[%emt 0:03:30]} Nxc4 {[%emt 0:05:51]} 12. Bxc4 {[%emt 0:00:25]} Nf6 $146 {[%emt 0:03:01]} ({Predecessor:} 12... Qc7 13. a5 Bd7 14. O-O Nf6 15. Bg5 Bc6 16. Bd3 Nh5 17. Bh6 Bf6 18. c3 d5 {½-½ Vavulin,M (2575)-Praggnanandhaa,R (2507) Moscow Aeroflot op-A 17th 2018 (7)}) 13. Bh6 {[%emt 0:01:44]} Nxe4 {[%emt 0:06:36]} 14. Bxe6 {[%emt 0:15:03]} (14. Qxe4 {feels hotter.} d5 15. Qd4 Bf6 16. Qe3) 14... Bxe6 {[%emt 0:08:41]} 15. Qxe4 {[%emt 0:00:10]} Bxb3 {[%emt 0:31:18]} 16. cxb3 {[%emt 0:00:12][%cal Oe1g1] [#]} d5 {[%emt 0:00:26]} 17. Qe3 {[%emt 0:08:10] Black is weak on the dark squares} Qa5+ {[%emt 0:19:37]} 18. Kf1 {[%emt 0:00:38]} Qc5 $1 {[%emt 0:02:56]} 19. Qf3 {[%emt 0:05:45]} Qd6 {[%emt 0:19:41] [#]} (19... f6 $14) 20. Re1 $1 $18 {[%emt 0:03:55]} Rd8 {[%emt 0:00:04]} 21. h4 {[%emt 0:18:16][%cal Bh2h4,Bh4h5][%mdl 32] White is much more active.} Rd7 {[%emt 0:00:29]} 22. h5 {[%emt 0:02:44]} Rg8 {[%emt 0:00:44]} (22... d4) 23. Bg5 {[%emt 0:01:33]} Kf8 $2 {[%emt 0:00:35]} (23... h6 $16) 24. Bf4 {[%emt 0:03:23]} Qb6 {[%emt 0:00:36]} 25. hxg6 {[%emt 0:06:29]} Qxg6 {[%emt 0:00:02]} 26. Bh6+ {[%emt 0:02:41]} Ke8 {[%emt 0:00:03]} 27. Rh3 {[%emt 0:00:11]} Qc6 {[%emt 0:01:31]} 28. Bd2 {[%emt 0:09:18]} d4 {[%emt 0:00:27]} 29. Qxc6 {[%emt 0:00:28]} (29. Rxh7 Qxf3 30. gxf3 Kf8) 29... bxc6 {[%emt 0:00:01]} 30. Rxh7 {[%emt 0:00:16]} Rd5 {[%emt 0:01:04]} 31. b4 {[%emt 0:01:16]} Rg6 {[%emt 0:00:29]} (31... d3 $16 {was called for.} 32. Re4 Rg6 33. Rh8+ Kd7) 32. Rh8+ {[%emt 0:00:36][%cal Bh7h8,Bh8a8,Ba8a7][%mdl 32]} Kd7 {[%emt 0:00:03]} 33. Ra8 {[%emt 0:00:05] And now Ra7+ would win.} Re6 $2 {[%emt 0:00:55]} (33... Bg5 34. Ra7+ Kd6) 34. Ra7+ {[%emt 0:00:48]} ({Less strong is} 34. Rxa6 d3 35. Ra7+ Kd8 $18) 34... Kd8 {[%emt 0:00:12]} 35. Ra8+ {[%emt 0:01:12]} Kd7 {[%emt 0:00:08]} 36. Ra7+ {[%emt 0:00:04]} Kd8 {[%emt 0:00:05]} 37. Rxa6 {[%emt 0:00:19]} Rxe1+ {[%emt 0:00:11]} 38. Kxe1 {[%emt 0:00:26] Weighted Error Value: White=0.38/Black=0.29 (precise)   Mistake:       	---       	Black=5      Inaccurate:     	White=3     	Black=1      OK:         	White=11    	Black=4      Best:        	White=2     	Black=7      Strong:       	White=1     	Black=1} 1-0

[Event "Romanian Championship Open 2025"]
[Site "Craiova"]
[Date "2025.02.21"]
[Round "7.3"]
[White "Magold, Filip"]
[Black "Serban, Cristian-Stefan"]
[Result "1/2-1/2"]
[Annotator "RC"]
[ECO "C65"]
[WhiteElo "2431"]
[BlackElo "2295"]
[PlyCount "109"]
[EventDate "2025.02.12"]
[EventType "swiss"]
[EventCountry "ROU"]
[SourceTitle "playchess.com"]
[Source "ChessBase"]
[SourceQuality "1"]
[TimeControl "40/5400+30:900+30"]

1. e4 {[%emt 0:00:27]} e5 {[%emt 0:00:13]} 2. Nf3 {[%emt 0:00:04]} Nc6 {[%emt 0:00:08]} 3. Bb5 {[%emt 0:00:03]} Nf6 {[%emt 0:00:06]} 4. d3 {[%emt 0:00:03]} Bc5 {[%emt 0:00:07]} 5. O-O {[%emt 0:00:03]} Nd4 {[%emt 0:00:19]} 6. Bc4 {[%emt 0:01:23]} Nxf3+ {[%emt 0:05:22]} 7. Qxf3 {[%emt 0:00:06]} O-O {[%emt 0:00:24]} 8. Bg5 {[%emt 0:01:37]} Be7 {[%emt 0:06:41]} 9. c3 {[%emt 0:04:02]} c6 {[%emt 0:09:16]} 10. Bb3 {[%emt 0:03:16]} h6 {[%emt 0:03:33]} 11. Bh4 {[%emt 0:06:35]} d6 {[%emt 0:04:16]} 12. d4 {[%emt 0:03:12]} exd4 {[%emt 0:06:19]} 13. cxd4 {[%emt 0:00:06]} Nxe4 {[%emt 0:00:10]} 14. Bxe7 {[%emt 0:00:06]} Qxe7 {[%emt 0:00:03]} 15. Re1 {[%emt 0:00:05]} d5 {[%emt 0:00:10]} 16. Nc3 {[%emt 0:00:14]} Re8 {[%emt 0:23:48]} 17. Nxe4 {[%emt 0:02:31]} dxe4 {[%emt 0:00:13]} 18. Qf4 {[%emt 0:01:42]} Qf6 {[%emt 0:05:21]} 19. Qxf6 {[%emt 0:22:48]} gxf6 {[%emt 0:00:04]} 20. f3 {[%emt 0:00:11]} f5 {[%emt 0:01:19]} 21. Bc2 {[%emt 0:02:09]} Rd8 {[%emt 0:00:26]} 22. Rad1 {[%emt 0:01:47]} exf3 {[%emt 0:01:01]} 23. gxf3 {[%emt 0:00:06]} Be6 {[%emt 0:00:17]} 24. Re5 {[%emt 0:01:42]} Rd6 {[%emt 0:03:13]} 25. Bxf5 {[%emt 0:04:57]} Bxf5 {[%emt 0:00:17]} 26. Rxf5 {[%emt 0:00:02]} Rad8 {[%emt 0:00:04]} 27. Rf4 {[%emt 0:01:33]} c5 {[%emt 0:02:34]} 28. Kf2 {[%emt 0:00:46]} cxd4 {[%emt 0:02:04]} 29. Ke2 {[%emt 0:00:41]} Re8+ {[%emt 0:09:34]} 30. Re4 {[%emt 0:01:55]} Rxe4+ {[%emt 0:00:07]} 31. fxe4 {[%emt 0:00:02]} Ra6 {[%emt 0:00:04]} 32. a3 {[%emt 0:05:40]} Rb6 {[%emt 0:01:00]} 33. b4 {[%emt 0:00:02]} Ra6 {[%emt 0:00:03]} 34. Rd3 {[%emt 0:01:23]} Kg7 {[%emt 0:01:31]} 35. Kf3 {[%emt 0:07:36]} Kf6 {[%emt 0:03:09]} 36. Kf4 {[%emt 0:00:03]} Ke6 {[%emt 0:00:07]} 37. Rh3 {[%emt 0:00:05]} h5 {[%emt 0:00:18]} 38. Rxh5 {[%emt 0:05:03]} Rxa3 {[%emt 0:00:15]} 39. Re5+ {[%emt 0:00:02]} Kf6 {[%emt 0:00:05]} 40. Rd5 {[%emt 0:00:00]} d3 {[%emt 0:00:00]} 41. Ke3 {[%emt 0:02:15]} Rb3 {[%emt 0:01:02]} 42. b5 {[%emt 0:01:35]} d2+ {[%emt 0:02:42]} 43. Kxd2 {[%emt 0:00:23]} Rb2+ {[%emt 0:00:04]} 44. Kc3 {[%emt 0:00:42]} Rxh2 {[%emt 0:00:39]} 45. Rd7 {[%emt 0:00:07]} Ke6 {[%emt 0:00:18]} 46. Rxb7 {[%emt 0:00:09]} Ra2 {[%emt 0:00:02]} 47. Kd4 {[%emt 0:00:52]} f6 {[%emt 0:00:19]} 48. Rc7 {[%emt 0:01:09]} Rd2+ {[%emt 0:00:19]} 49. Kc3 {[%emt 0:01:36]} Ra2 {[%emt 0:00:06]} 50. Kd3 {[%emt 0:01:13]} Ra1 {[%emt 0:00:12]} 51. Ke3 {[%emt 0:00:33]} Ra2 {[%emt 0:00:08]} 52. Rc6+ {[%emt 0:00:23]} Ke5 {[%emt 0:00:08]} 53. Rc5+ {[%emt 0:00:11]} Ke6 {[%emt 0:00:05]} 54. Rc6+ {[%emt 0:00:04]} Ke5 {[%emt 0:00:02]} 55. Rc5+ {[%emt 0:00:09]} 1/2-1/2

[Event "Romanian Championship Open 2025"]
[Site "Craiova"]
[Date "2025.02.21"]
[Round "7.4"]
[White "Sava, Robert-Gabriel"]
[Black "Sachilaru, Alexandru"]
[Result "1/2-1/2"]
[Annotator "RC"]
[ECO "D30"]
[WhiteElo "2183"]
[BlackElo "2305"]
[PlyCount "48"]
[EventDate "2025.02.12"]
[EventType "swiss"]
[EventCountry "ROU"]
[SourceTitle "playchess.com"]
[Source "ChessBase"]
[SourceQuality "1"]
[TimeControl "40/5400+30:900+30"]

1. d4 {[%emt 0:00:03]} Nf6 {[%emt 0:00:13]} 2. c4 {[%emt 0:00:19]} e6 {[%emt 0:00:22]} 3. Nf3 {[%emt 0:00:24]} a6 {[%emt 0:00:35]} 4. e3 {[%emt 0:01:28]} d5 {[%emt 0:00:53]} 5. Nbd2 {[%emt 0:02:06]} Be7 {[%emt 0:09:40]} 6. Be2 {[%emt 0:00:20]} O-O {[%emt 0:01:19]} 7. O-O {[%emt 0:00:09]} b6 {[%emt 0:03:24]} 8. b3 {[%emt 0:00:33]} Bb7 {[%emt 0:00:46]} 9. Bb2 {[%emt 0:00:16]} Nbd7 {[%emt 0:00:51]} 10. Ne5 {[%emt 0:05:39]} c5 {[%emt 0:05:38]} 11. Ndf3 {[%emt 0:09:57]} Rc8 {[%emt 0:05:29]} 12. Rc1 {[%emt 0:03:53]} Bd6 {[%emt 0:04:43]} 13. Nxd7 {[%emt 0:06:33]} Nxd7 {[%emt 0:06:08]} 14. Ne5 {[%emt 0:12:51]} Nxe5 {[%emt 0:15:37]} 15. dxe5 {[%emt 0:00:05]} Bb8 {[%emt 0:03:26]} 16. Bf3 {[%emt 0:02:53]} Qe7 {[%emt 0:04:16]} 17. cxd5 {[%emt 0:02:13]} exd5 {[%emt 0:01:39]} 18. Bg4 {[%emt 0:00:06]} Rcd8 {[%emt 0:02:10]} 19. f4 {[%emt 0:00:11]} b5 {[%emt 0:01:55]} 20. Kh1 {[%emt 0:01:12]} a5 {[%emt 0:06:41]} 21. Qe2 {[%emt 0:11:06]} b4 {[%emt 0:04:45]} 22. Rfd1 {[%emt 0:02:30]} Rfe8 {[%emt 0:02:45]} 23. Qb5 {[%emt 0:01:34]} Ba7 {[%emt 0:01:46]} 24. f5 {[%emt 0:06:34]} Qd7 {[%emt 0:05:10]} 1/2-1/2

[Event "Romanian Championship Open 2025"]
[Site "Craiova"]
[Date "2025.02.21"]
[Round "7.5"]
[White "Cnejev, Vladimir-Alexandru"]
[Black "David, Alexandru-Vasile"]
[Result "1-0"]
[Annotator "RC"]
[ECO "B07"]
[WhiteElo "2300"]
[BlackElo "2331"]
[PlyCount "115"]
[EventDate "2025.02.12"]
[EventType "swiss"]
[EventCountry "ROU"]
[SourceTitle "playchess.com"]
[Source "ChessBase"]
[SourceQuality "1"]
[TimeControl "40/5400+30:900+30"]

1. e4 {[%emt 0:04:28]} g6 {[%emt 0:00:38]} 2. d4 {[%emt 0:00:11]} Bg7 {[%emt 0:00:08]} 3. Nf3 {[%emt 0:00:10]} d6 {[%emt 0:00:09]} 4. Bd3 {[%emt 0:00:14]} Nf6 {[%emt 0:00:08]} 5. Nbd2 {[%emt 0:00:06]} O-O {[%emt 0:00:28]} 6. O-O {[%emt 0:00:06]} Nc6 {[%emt 0:00:20]} 7. c3 {[%emt 0:00:23]} e5 {[%emt 0:01:16]} 8. Re1 {[%emt 0:00:38]} Nh5 {[%emt 0:07:15]} 9. dxe5 {[%emt 0:10:14]} dxe5 {[%emt 0:00:41]} 10. Qc2 {[%emt 0:00:46]} f5 {[%emt 0:10:30]} 11. b4 {[%emt 0:08:15]} a6 {[%emt 0:06:24]} 12. a4 {[%emt 0:14:13]} Nf4 {[%emt 0:12:37]} 13. Bc4+ {[%emt 0:06:00]} Be6 {[%emt 0:02:54]} 14. Bxe6+ {[%emt 0:11:00]} Nxe6 {[%emt 0:00:13]} 15. Qb3 {[%emt 0:00:31]} Re8 {[%emt 0:03:12]} 16. Nc4 {[%emt 0:07:40]} fxe4 {[%emt 0:10:31]} 17. Rxe4 {[%emt 0:15:30]} Qd5 {[%emt 0:00:17]} 18. Qc2 {[%emt 0:00:17]} Nf4 {[%emt 0:07:06]} 19. Ne3 {[%emt 0:04:10]} Qd3 {[%emt 0:00:43]} 20. Qxd3 {[%emt 0:05:12]} Nxd3 {[%emt 0:00:06]} 21. Bd2 {[%emt 0:00:41]} Rad8 {[%emt 0:00:57]} 22. Kf1 {[%emt 0:00:38]} a5 {[%emt 0:04:49]} 23. Be1 {[%emt 0:02:22]} Rf8 {[%emt 0:02:47]} 24. b5 {[%emt 0:05:59]} Nb8 {[%emt 0:02:35]} 25. Rc4 {[%emt 0:00:41]} c5 {[%emt 0:02:23]} 26. bxc6 {[%emt 0:00:14]} Nxc6 {[%emt 0:00:06]} 27. Rb1 {[%emt 0:00:49]} Rd7 {[%emt 0:00:03]} 28. Rb5 {[%emt 0:01:34]} h6 {[%emt 0:04:51]} 29. h4 {[%emt 0:00:04]} Rfd8 {[%emt 0:06:48]} 30. Re4 {[%emt 0:01:34]} Bf8 {[%emt 0:00:06]} 31. Nc4 {[%emt 0:00:46]} Nc5 {[%emt 0:02:44]} 32. Rg4 {[%emt 0:00:23]} Rd1 {[%emt 0:01:24]} 33. Nfxe5 {[%emt 0:00:39]} g5 {[%emt 0:06:10]} 34. hxg5 {[%emt 0:00:04]} h5 {[%emt 0:00:03]} 35. Rf4 {[%emt 0:00:57]} Nxa4 {[%emt 0:04:28]} 36. Ne3 {[%emt 0:00:29]} Nxc3 {[%emt 0:00:17]} 37. Nxc6 {[%emt 0:00:27]} bxc6 {[%emt 0:00:50]} 38. Rb3 {[%emt 0:00:28]} Bb4 {[%emt 0:01:49]} 39. Nxd1 {[%emt 0:00:11]} Rxd1 {[%emt 0:00:02]} 40. Rbxb4 {[%emt 0:00:00]} axb4 {[%emt 0:00:00]} 41. Rxb4 {[%emt 0:00:53]} Nb5 {[%emt 0:02:17]} 42. Rc4 {[%emt 0:03:45]} Nd4 {[%emt 0:00:18]} 43. f4 {[%emt 0:01:18]} Ne6 {[%emt 0:03:46]} 44. Ke2 {[%emt 0:03:58]} Rd5 {[%emt 0:00:17]} 45. Ke3 {[%emt 0:01:30]} c5 {[%emt 0:01:52]} 46. Ke4 {[%emt 0:03:30]} Rd1 {[%emt 0:00:05]} 47. Bc3 {[%emt 0:02:26]} Rg1 {[%emt 0:01:00]} 48. Kf5 {[%emt 0:00:39]} Nf8 {[%emt 0:03:36]} 49. Rxc5 {[%emt 0:00:06]} Rxg2 {[%emt 0:00:06]} 50. Rc8 {[%emt 0:00:18]} Kf7 {[%emt 0:00:19]} 51. Rc7+ {[%emt 0:01:01]} Ke8 {[%emt 0:00:05]} 52. Rc8+ {[%emt 0:00:43]} Kf7 {[%emt 0:00:04]} 53. Rc7+ {[%emt 0:01:22]} Ke8 {[%emt 0:00:01]} 54. Bb4 {[%emt 0:00:24]} Nd7 {[%emt 0:00:40]} 55. Rc8+ {[%emt 0:00:58]} Kf7 {[%emt 0:00:01]} 56. Rd8 {[%emt 0:00:52]} Nb6 {[%emt 0:00:09]} 57. Bc5 {[%emt 0:00:32]} Nc4 {[%emt 0:00:26]} 58. g6+ {[%emt 0:00:22]} 1-0

[Event "Romanian Championship Open 2025"]
[Site "Craiova"]
[Date "2025.02.21"]
[Round "7.6"]
[White "Craciun, Sasha-Matei"]
[Black "Jianu, Vlad-Cristian"]
[Result "1/2-1/2"]
[Annotator "RC"]
[ECO "B07"]
[WhiteElo "2257"]
[BlackElo "2467"]
[PlyCount "35"]
[EventDate "2025.02.12"]
[EventType "swiss"]
[EventCountry "ROU"]
[SourceTitle "playchess.com"]
[Source "ChessBase"]
[SourceQuality "1"]
[TimeControl "40/5400+30:900+30"]

1. e4 {[%emt 0:00:03]} d6 {[%emt 0:00:05]} 2. d4 {[%emt 0:00:04]} Nf6 {[%emt 0:00:05]} 3. Nd2 {[%emt 0:00:04]} e5 {[%emt 0:00:06]} 4. c3 {[%emt 0:00:04]} g6 {[%emt 0:00:05]} 5. Ngf3 {[%emt 0:00:21]} Nbd7 {[%emt 0:00:06]} 6. Bd3 {[%emt 0:00:44]} Bg7 {[%emt 0:00:06]} 7. O-O {[%emt 0:00:27]} O-O {[%emt 0:00:05]} 8. Re1 {[%emt 0:00:51]} b6 {[%emt 0:00:14]} 9. Qc2 {[%emt 0:08:36]} Bb7 {[%emt 0:00:11]} 10. Nc4 {[%emt 0:03:53]} d5 {[%emt 0:25:00]} 11. exd5 {[%emt 0:08:35]} exd4 {[%emt 0:00:15]} 12. cxd4 {[%emt 0:12:04]} Nxd5 {[%emt 0:02:51]} 13. Bd2 {[%emt 0:01:31]} N7f6 {[%emt 0:16:02]} 14. Nce5 {[%emt 0:04:04]} Qd6 {[%emt 0:06:48]} 15. Nc4 {[%emt 0:06:21]} Qd8 {[%emt 0:02:27]} 16. Nce5 {[%emt 0:00:14]} Qd6 {[%emt 0:02:02]} 17. Nc4 {[%emt 0:00:25]} Qd8 {[%emt 0:00:43]} 18. Nce5 {[%emt 0:00:43]} 1/2-1/2

[Event "Romanian Championship Open 2025"]
[Site "Craiova"]
[Date "2025.02.21"]
[Round "7.7"]
[White "Ghimpu, Samuel-Timotei"]
[Black "Coicev, Matei-Andrei"]
[Result "1/2-1/2"]
[Annotator "RC"]
[ECO "B10"]
[WhiteElo "2456"]
[BlackElo "2286"]
[PlyCount "79"]
[EventDate "2025.02.12"]
[EventType "swiss"]
[EventCountry "ROU"]
[SourceTitle "playchess.com"]
[Source "ChessBase"]
[SourceQuality "1"]
[TimeControl "40/5400+30:900+30"]

1. e4 {[%emt 0:03:50]} c6 {[%emt 0:00:15]} 2. Nf3 {[%emt 0:07:41]} d5 {[%emt 0:00:22]} 3. d3 {[%emt 0:00:41]} Bg4 {[%emt 0:01:10]} 4. h3 {[%emt 0:00:31]} Bxf3 {[%emt 0:00:38]} 5. Qxf3 {[%emt 0:00:11]} e6 {[%emt 0:00:22]} 6. g3 {[%emt 0:00:59]} Nd7 {[%emt 0:01:22]} 7. Qe2 {[%emt 0:02:03]} Bd6 {[%emt 0:02:33]} 8. Bg2 {[%emt 0:02:42]} Ne7 {[%emt 0:02:15]} 9. O-O {[%emt 0:04:01]} Qc7 {[%emt 0:01:30]} 10. Nd2 {[%emt 0:03:53]} h5 {[%emt 0:05:45]} 11. d4 {[%emt 0:16:54]} e5 {[%emt 0:11:57]} 12. exd5 {[%emt 0:06:23]} cxd5 {[%emt 0:00:40]} 13. c4 {[%emt 0:00:16]} exd4 {[%emt 0:02:47]} 14. cxd5 {[%emt 0:00:14]} Nf6 {[%emt 0:05:31]} 15. Nc4 {[%emt 0:31:21]} O-O {[%emt 0:04:50]} 16. Rd1 {[%emt 0:02:33]} Nexd5 {[%emt 0:10:36]} 17. Nxd6 {[%emt 0:00:45]} Qxd6 {[%emt 0:00:26]} 18. Rxd4 {[%emt 0:00:17]} Qe6 {[%emt 0:04:24]} 19. Qd1 {[%emt 0:02:41]} Ne7 {[%emt 0:02:55]} 20. Bxb7 {[%emt 0:02:45]} Rab8 {[%emt 0:00:36]} 21. Bg2 {[%emt 0:00:27]} Nf5 {[%emt 0:00:28]} 22. Rd3 {[%emt 0:00:48]} Rfe8 {[%emt 0:01:16]} 23. b3 {[%emt 0:01:03]} a5 {[%emt 0:07:45]} 24. Bf4 {[%emt 0:03:44]} Rbc8 {[%emt 0:01:20]} 25. Bb7 {[%emt 0:01:40]} Rc5 {[%emt 0:00:35]} 26. Rd8 {[%emt 0:00:34]} Rxd8 {[%emt 0:01:51]} 27. Qxd8+ {[%emt 0:00:06]} Kh7 {[%emt 0:00:06]} 28. Qd3 {[%emt 0:02:12]} Nd5 {[%emt 0:01:32]} 29. Bd2 {[%emt 0:01:07]} Nb4 {[%emt 0:01:15]} 30. Qf3 {[%emt 0:01:44]} g6 {[%emt 0:01:23]} 31. Bxb4 {[%emt 0:01:02]} axb4 {[%emt 0:00:05]} 32. Rd1 {[%emt 0:00:12]} Rc3 {[%emt 0:00:52]} 33. Qe4 {[%emt 0:01:03]} Qb6 {[%emt 0:00:25]} 34. g4 {[%emt 0:00:35]} Nd6 {[%emt 0:10:12]} 35. Qf4 {[%emt 0:00:25]} Qxb7 {[%emt 0:01:21]} 36. Qxd6 {[%emt 0:00:01]} Rxh3 {[%emt 0:00:54]} 37. Qd5 {[%emt 0:00:12]} Qe7 {[%emt 0:00:55]} 38. Kg2 {[%emt 0:00:44]} Rh4 {[%emt 0:00:45]} 39. gxh5 {[%emt 0:00:19]} Rxh5 {[%emt 0:01:40]} 40. Rh1 {[%emt 0:00:00]} 1/2-1/2